[Event "New York Spring IM-C 2022"]
[Site "New York"]
[Date "2022.04.17"]
[Round "5.2"]
[White "Dolgitser, Konstantin"]
[Black "Rozman, Levy"]
[Result "0-1"]
[ECO "D20"]
[WhiteElo "2199"]
[BlackElo "2334"]
[Annotator "TA"]
[PlyCount "78"]
[EventDate "2022.04.14"]
[EventType "tourn"]
[EventCountry "USA"]
[SourceTitle "playchess.com"]
[Source "ChessBase"]
[SourceQuality "1"]
[TimeControl "5400+30"]

{[%evp 9,78,45,59,37,39,0,14,10,16,20,29,7,18,-71,-24,-37,-39,-76,-64,-70,-38,-36,-47,-38,-49,-56,-66,-56,-26,-26,-19,-95,0,-14,0,-7,0,-156,-48,-228,-228,-226,-186,-176,-76,-76,-66,-337,-336,-5177,-1184,-2009,-1894,-1490,-1697,-1325,-1293,-1602,-1519,-29968,-29969,-29968,-29969,-5225,-5225,-29976,-29977,-29966,-29960,-29983,-29984]} 1. d4 {[%emt 0:00:03]} d5 {[%emt 0:02:42]} 2. c4 {[%emt 0:00:10]} dxc4 {[%emt 0:02:37]} 3. e3 {[%emt 0:00:30]} e5 {[%emt 0:00:38]} 4. Bxc4 {[%emt 0:00:16]} Nc6 {[%emt 0:00:29]} 5. Nf3 {[%emt 0:02:39]} e4 {[%emt 0:01:15]} 6. Nfd2 {[%emt 0:01:28] D20: Queen's Gambit Accepted: 3 e3 and 3 e4.} (6. Qb3 $5 {[%cal Rc4f7]} Nh6 7. Nfd2 $11) 6... Qg5 {[%emt 0:00:34]} 7. g3 {[%emt 0:04:19]} Nf6 {[%emt 0:04:26]} 8. Nc3 {[%emt 0:05:12] The position is equal.} Bb4 {[%emt 0:09:06]} 9. Qc2 {[%emt 0:05:04]} Qg6 {[%emt 0:02:52]} (9... O-O {with more complications.} 10. Ndxe4 Nxe4 11. Qxe4 Bh3) 10. a3 {[%emt 0:00:13]} Bxc3 {[%emt 0:01:47] [#]} 11. Qxc3 $146 {[%emt 0:00:24]} (11. bxc3 $11 O-O 12. Bf1) ({Predecessor:} 11. bxc3 O-O 12. Bf1 h5 13. h4 Re8 14. Bg2 Bf5 15. Nb3 Bg4 16. Bb2 Qf5 17. Nd2 {0-1 (40) Dudin,G (2323)-Savitskiy,S (2411) Moscow 2019}) 11... h5 {[%emt 0:09:54]} (11... Bh3 $17) 12. h4 {[%emt 0:18:13]} O-O {[%emt 0:02:56]} 13. Bf1 {[%emt 0:12:37]} Nd5 {[%emt 0:05:21]} 14. Qb3 {[%emt 0:03:41]} Be6 {[%emt 0:01:10][%cal Od5b4]} 15. Nc4 {[%emt 0:05:12]} Rab8 {[%emt 0:04:44]} 16. Qc2 {[%emt 0:02:33]} b5 {[%emt 0:01:55]} 17. Ne5 {[%emt 0:00:07]} Nxe5 {[%emt 0:00:06]} 18. dxe5 {[%emt 0:00:04]} Rfe8 {[%emt 0:07:59]} 19. Bg2 {[%emt 0:00:41]} Bf5 $36 {[%emt 0:01:30][%mdl 2048] White is under pressure.} 20. Qc5 {[%emt 0:00:06]} (20. O-O $11 {remains equal.}) 20... Rxe5 {[%emt 0:03:57] &Nero is much more active. The white rooks are badly placed.} ({Black should try} 20... Nb6 $1 $17 {[%cal Rb6d7] Hoping for ...Nd7.} 21. Qxc7 Nc4) 21. Qxa7 $11 {[%emt 0:00:06]} Rbe8 {[%emt 0:09:10][%cal Oc7c5]} 22. O-O {[%emt 0:00:28]} Qe6 {[%emt 0:01:43]} 23. Bd2 $2 {[%emt 0:00:39] [#]} (23. b4 $11 Bh3 24. Bb2 Bxg2 25. Kxg2) 23... Bh3 {[%emt 0:04:47]} ({Black should play} 23... g5 $1 $17 {[%cal Rg5h4] ...gxh4 is the strong threat.} 24. hxg5 Bh3) 24. Rac1 $2 {[%emt 0:07:14] [#]} (24. Bc3 $15 Nxc3 25. bxc3) 24... g5 $1 $19 {[%emt 0:01:47]} 25. Bc3 {[%emt 0:00:12]} Bxg2 {[%emt 0:02:41]} 26. Kxg2 {[%emt 0:00:02]} Nxc3 {[%emt 0:00:59]} 27. Rxc3 {[%emt 0:00:15]} gxh4 {[%emt 0:00:14] Strongly threatening ...Qg4.} 28. Rxc7 $2 {[%emt 0:00:21][%mdl 8192]} (28. Rc5 $1 $15) 28... Qf5 {[%emt 0:00:41]} 29. f4 $2 {[%emt 0:07:59]} (29. Rcc1 Qf3+ 30. Kh2) 29... Rd5 {[%emt 0:02:47]} (29... exf3+ $142 30. Rxf3 h3+ 31. Kf2 Qb1 32. Rcxf7 Qxb2+ 33. Kf1 Qb1+ 34. Kf2 h2 35. Rg7+ Kh8 36. Rh7+ Qxh7 37. Qxh7+ Kxh7 38. Kg2 Rxe3 39. Rf7+ Kg6 40. Rf1 Re1 41. Rxe1 Rxe1 42. Kxh2 Re3 43. Kg2 Kf5 44. Kf2 Ke4 45. Kg1 Rxg3+ 46. Kf2 h4 47. Ke1 h3 48. Ke2 h2 49. Kf2 Rg5 50. Ke1 Rg2 51. Kf1 h1=Q#) 30. Qa5 {[%emt 0:00:07]} Qg4 {[%emt 0:01:47]} 31. Qe1 {[%emt 0:00:12]} Red8 {[%emt 0:00:12]} 32. Rc2 {[%emt 0:01:19] Prevents Rd2+.} Rd1 {[%emt 0:00:19]} 33. Qf2 {[%emt 0:00:27]} hxg3 {[%emt 0:00:51]} 34. Qe2 {[%emt 0:01:21] [#]} Qh4 $1 {[%emt 0:00:24][%csl Gg3][%cal Rh4h2][%mdl 512]} 35. Kg1 {[%emt 0:01:09]} Rxf1+ {[%emt 0:02:18]} 36. Qxf1 {[%emt 0:00:08]} Qg4 {[%emt 0:00:32] ( -> ...Rd1)} 37. Qe2 {[%emt 0:01:08]} Qf3 {[%emt 0:01:55] Black mates.} 38. Rd2 {[%emt 0:01:07]} Rc8 {[%emt 0:00:06]} 39. Rc2 {[%emt 0:03:22]} Rxc2 {[%emt 0:01:07] Weighted Error Value: White=0.96/Black=0.23 (precise)} 0-1

[Event "New York Spring IM-C 2022"]
[Site "New York"]
[Date "2022.04.17"]
[Round "5.3"]
[White "Antova, Gabriela"]
[Black "Berczes, David"]
[Result "1-0"]
[ECO "E00"]
[WhiteElo "2304"]
[BlackElo "2452"]
[Annotator "TA"]
[PlyCount "77"]
[EventDate "2022.04.14"]
[EventType "tourn"]
[EventCountry "USA"]
[SourceTitle "playchess.com"]
[Source "ChessBase"]
[SourceQuality "1"]
[TimeControl "5400+30"]

{[%evp 9,77,7,0,-33,8,12,12,9,7,2,3,-18,10,24,25,35,37,21,43,-4,0,-8,-4,-5,72,52,76,74,108,104,148,133,179,139,145,-3,-4,-14,0,-289,-292,-241,-58,-384,-50,-68,0,0,93,95,141,143,150,148,146,124,144,149,206,197,190,218,1574,1350,1588,1163,1268,1122,2099,2047]} 1. d4 {[%emt 0:00:03]} e6 {[%emt 0:23:12]} 2. c4 {[%emt 0:00:14]} Bb4+ {[%emt 0:02:19]} 3. Nd2 {[%emt 0:00:58]} c5 {[%emt 0:11:46]} 4. dxc5 {[%emt 0:08:53]} Nf6 {[%emt 0:04:37]} 5. g3 {[%emt 0:04:26]} Bxc5 {[%emt 0:06:33]} 6. Nh3 {[%emt 0:10:07] E00: Catalan Bogo-Indian (3 g3 Bb4+).} d5 {[%emt 0:06:10]} 7. Bg2 {[%emt 0:00:50]} O-O {[%emt 0:15:12]} 8. O-O {[%emt 0:03:43] The position is equal.} Nc6 {[%emt 0:04:16]} 9. Nf4 {[%emt 0:08:13]} Bb6 {[%emt 0:05:59] [#]} 10. Nd3 $146 {[%emt 0:12:36]} ({Predecessor:} 10. cxd5 exd5 11. b3 Bd4 12. Ba3 Bxa1 13. Bxf8 Be5 14. Bc5 Bf5 15. Nd3 Bxd3 16. exd3 Bd4 17. Bxd4 Nxd4 18. Nf3 Qb6 19. Qd2 {½-½ (19) Aleksandrov,A (2574)-Rakhmanov,A (2629) Skopje 2019}) 10... a5 {[%emt 0:04:07]} 11. b3 {[%emt 0:03:10]} d4 {[%emt 0:06:24]} 12. c5 {[%emt 0:09:11]} Bc7 {[%emt 0:00:16]} 13. Nc4 {[%emt 0:01:03]} e5 {[%emt 0:00:24]} 14. e4 {[%emt 0:03:21]} (14. Bxc6 $14 {is superior.} bxc6 15. Ndxe5) 14... dxe3 $11 {[%emt 0:02:46]} 15. Bxe3 {[%emt 0:01:55]} Bg4 {[%emt 0:01:24]} 16. Qd2 {[%emt 0:01:02][%cal Oc4d6]} Qd7 {[%emt 0:00:17] Prevents Nd6.} (16... e4 $11 17. Ndb2 Ne5) 17. Bxc6 $16 {[%emt 0:02:14]} bxc6 {[%emt 0:00:36]} 18. Ndxe5 {[%emt 0:00:45]} Qf5 {[%emt 0:00:51]} 19. Nxc6 {[%emt 0:06:13] Pair of Knights!} Qh5 {[%emt 0:01:50][%cal Of8d8]} 20. f4 {[%emt 0:07:12]} Bh3 {[%emt 0:00:37]} (20... Rfe8 $16) 21. Rfe1 {[%emt 0:03:10] aiming for Bd4.} Rfe8 {[%emt 0:00:44]} 22. Bd4 {[%emt 0:02:44]} ({Not} 22. N6xa5 Ne4 23. Qc2 (23. Qb4 Qf3) 23... Bxa5 24. Nxa5 Rxa5 $17) (22. N6e5 $16) 22... Ne4 $1 $11 {[%emt 0:00:37]} 23. Qb2 {[%emt 0:01:50]} (23. Qe3 $5 {[%cal Rd4e5]} Qd5 24. N6e5 (24. g4 Bxg4 25. N4e5 Bf5 $15) 24... Bxe5 25. Nxe5 Nxc5 26. Qf2 $15) 23... f6 {[%emt 0:00:26]} 24. Be5 $2 {[%emt 0:02:38][%mdl 8192]} fxe5 $19 {[%emt 0:00:17]} 25. Rxe4 {[%emt 0:00:10][%cal Rc6e5]} exf4 {[%emt 0:00:08]} (25... Qg6 $19 26. Nd6 Bxd6) 26. N4e5 $2 {[%emt 0:01:28][%mdl 8192] [#]} (26. N6e5 $15) 26... fxg3 $2 {[%emt 0:01:07]} (26... Bd7 27. Qd4 Bxc6 28. Qc4+ Kh8 29. Nf7+ Kg8 30. Ne5+ Kh8 31. Nf7+ Kg8 32. Ne5+ $11) (26... Ra6 $1 $19 {[%cal Ra6c6]} 27. Qd4 Re6) 27. hxg3 $15 {[%emt 0:00:05]} Bxe5 {[%emt 0:00:33]} (27... Qg5 $1 $15 28. Qc3 Rac8) 28. Nxe5 $11 {[%emt 0:00:37]} Qg5 {[%emt 0:00:27]} (28... Be6 $11 {keeps the balance.} 29. Qe2 (29. Qh2 Qf5 $11) 29... Qh3) 29. Qc3 $36 {[%emt 0:00:10][%mdl 2048] White is in control.} Rad8 {[%emt 0:00:33] [#]} (29... Rac8 $142 30. Re3 Qd8) 30. Rae1 $1 {[%emt 0:01:12] Black must now prevent g4.} Rd2 {[%emt 0:00:29] ...Rg2+ is the strong threat.} 31. R4e2 {[%emt 0:00:46] Inhibits Rg2+. Dancing on a razor blade.} Rxe2 {[%emt 0:00:29]} 32. Rxe2 {[%emt 0:00:01]} h5 {[%emt 0:00:28]} (32... Qf5 $2 33. Qc4+ Re6 34. g4 Qf1+ 35. Kh2 Bxg4 36. Qxg4 $18) 33. c6 {[%emt 0:02:20]} Qf5 {[%emt 0:00:34]} (33... Qf6 $16 34. Re1 Be6) 34. Qc4+ {[%emt 0:00:28]} Kh7 {[%emt 0:00:08]} 35. Qe4 {[%emt 0:01:01] Active counter play!} Rxe5 $2 {[%emt 0:00:48]} (35... g6 36. Qxf5 Bxf5) 36. Qxe5 $18 {[%emt 0:00:06] White is clearly winning.} Qf1+ {[%emt 0:00:17]} 37. Kh2 {[%emt 0:00:01]} Bg4 {[%emt 0:00:38]} 38. Rd2 {[%emt 0:01:23]} h4 {[%emt 0:00:39]} 39. Qe4+ {[%emt 0:00:32] Weighted Error Value: White=0.54/Black=0.45} 1-0

[Event "New York Spring IM-C 2022"]
[Site "New York"]
[Date "2022.04.17"]
[Round "5.4"]
[White "Jakovljevic, Vlado"]
[Black "Singh, Hersh"]
[Result "1-0"]
[ECO "D38"]
[WhiteElo "2352"]
[BlackElo "2084"]
[Annotator "TA"]
[PlyCount "127"]
[EventDate "2022.04.14"]
[EventType "tourn"]
[EventCountry "USA"]
[SourceTitle "playchess.com"]
[Source "ChessBase"]
[SourceQuality "1"]
[TimeControl "5400+30"]

{[%evp 9,127,1,2,0,0,0,0,2,8,13,26,22,15,14,14,16,21,19,19,21,21,20,20,22,24,40,45,53,57,50,44,35,93,73,128,129,168,170,166,180,185,175,392,257,253,250,234,231,231,226,237,236,214,190,207,132,145,129,135,112,113,112,112,112,125,94,137,132,156,146,168,185,175,55,213,217,215,171,199,192,191,187,235,185,172,0,245,208,277,255,837,835,816,763,856,710,1220,1038,1077,656,949,896,6486,4567,29980,29981,29981,29982,29984,29983,29984,29979,29985,29976,29977,29968,29979,29980,29993,29994]} 1. Nf3 {[%emt 0:02:29]} d5 {[%emt 0:00:06]} 2. d4 {[%emt 0:00:38][%cal Bd2d4,Bd4c5][%mdl 32]} Nf6 {[%emt 0:00:06]} 3. c4 {[%emt 0:00:04]} e6 {[%emt 0:00:04][%cal Be7e6,Be6d5][%mdl 32]} 4. Nc3 {[%emt 0:00:05]} Bb4 {[%emt 0:00:03]} 5. Qb3 {[%emt 0:00:06]} c5 {[%emt 0:05:45]} 6. cxd5 {[%emt 0:00:19] D38: Queen's Gambit Declined: Ragozin Defence (4 Nf3 Bb4).} exd5 {[%emt 0:00:59]} 7. dxc5 {[%emt 0:00:26]} Nc6 {[%emt 0:00:35] White must now prevent ...d4.} 8. Bg5 {[%emt 0:00:23] The position is equal.} Be6 {[%emt 0:11:57]} 9. O-O-O {[%emt 0:00:35][%cal Oe2e4,Ba1d1,Bd1d5,Bd5f5,Bf5f6][%mdl 32] Threatens to win with e4!} Qa5 {[%emt 0:04:27][%cal Od5d4]} (9... O-O {is more complex.} 10. e4 dxe4 11. Rxd8 Bxb3 12. Rxa8 Rxa8 13. Nd2 Be6) 10. Bxf6 {[%emt 0:00:48]} gxf6 {[%emt 0:06:17]} 11. Nxd5 {[%emt 0:01:34]} Qxc5+ {[%emt 0:01:13]} 12. Qc2 {[%emt 0:02:39]} Bxd5 {[%emt 0:01:25] A strong pair of Bishops.} (12... Qxc2+ {is interesting.} 13. Kxc2 O-O-O 14. e4 f5) 13. Qxc5 {[%emt 0:00:11][%mdl 64] Remove Defender} Bxc5 {[%emt 0:00:03]} 14. Rxd5 {[%emt 0:00:06]} Bxf2 {[%emt 0:00:05]} 15. e4 {[%emt 0:00:24]} O-O {[%emt 0:02:02]} 16. Bb5 {[%emt 0:05:43]} Nb4 {[%emt 0:04:41] [#]} 17. Rf5 $146 {[%emt 0:03:36]} ({Predecessor:} 17. Rd7 Nxa2+ 18. Kb1 Nb4 19. Rf1 Bc5 20. e5 a6 21. Bc4 b5 22. Bb3 Rad8 23. Bxf7+ {½-½ (33) Klapp,H (2135)-Hinz,H (2088) GER email 2012}) 17... a6 {[%emt 0:05:30]} 18. Ba4 {[%emt 0:00:32]} Nxa2+ {[%emt 0:00:30]} 19. Kb1 {[%emt 0:00:09]} Nb4 {[%emt 0:00:16]} 20. Rf1 {[%emt 0:00:32]} Ba7 {[%emt 0:02:44]} (20... Be3 $14) 21. Rxf6 $16 {[%emt 0:01:26]} Nd3 {[%emt 0:01:54]} (21... Be3 $142) 22. Ng5 {[%emt 0:06:34][%cal Rg5f7]} Bd4 {[%emt 0:07:06]} 23. Rd6 {[%emt 0:19:32]} ({Much less strong is} 23. Rxf7 Nc5 $16) 23... Rad8 {[%emt 0:03:14]} 24. Rxd8 {[%emt 0:00:26]} Rxd8 {[%emt 0:00:02]} 25. Nxf7 {[%emt 0:00:14]} Rc8 {[%emt 0:03:07]} (25... Rb8 26. Nh6+ Kh8) 26. Bb3 {[%emt 0:02:12]} Nc5 {[%emt 0:01:51]} 27. Bd5 {[%emt 0:00:41]} ({But not} 27. Nd6+ $2 Nxb3 28. Rd1 Rc7 $19) 27... Kg7 {[%emt 0:03:30]} 28. Nd6 {[%emt 0:05:14]} Rf8 {[%emt 0:00:03]} 29. Nf5+ {[%emt 0:00:18]} Kh8 {[%emt 0:00:02]} 30. Rc1 {[%emt 0:03:39]} Bf2 {[%emt 0:00:17]} 31. g3 {[%emt 0:02:20] And now Rc2 would win.} b6 {[%emt 0:02:04]} 32. Kc2 {[%emt 0:04:15]} a5 {[%emt 0:00:57]} 33. Kd2 {[%emt 0:00:46] Hoping for Ke2.} Nd7 {[%emt 0:01:04]} 34. Ke2 {[%emt 0:01:55] &Bianco is more active.} Bc5 {[%emt 0:00:04]} 35. Rd1 {[%emt 0:01:22]} Ne5 {[%emt 0:00:24]} 36. h3 {[%emt 0:02:39][%cal Bh2h3,Bh3h4][%mdl 32]} Ng6 {[%emt 0:01:27]} 37. h4 {[%emt 0:11:54]} Ne7 {[%emt 0:01:22]} 38. Be6 $1 {[%emt 0:00:39]} Nc6 {[%emt 0:02:21]} 39. b3 {[%emt 0:03:09]} Ne5 {[%emt 0:01:00]} 40. Rd5 {[%emt 0:01:31]} Ng4 {[%emt 0:00:33] [#]} 41. Kf3 {[%emt 0:00:57]} ({White must play} 41. e5 $1 $18) 41... Nf6 $2 {[%emt 0:00:54]} (41... h5 $14) 42. Rd1 $18 {[%emt 0:02:37]} Re8 {[%emt 0:00:42]} 43. Bd5 {[%emt 0:00:23]} Nd7 {[%emt 0:00:34]} 44. g4 {[%emt 0:02:19][%cal Bg3g4,Bg4g5][%mdl 32]} Ne5+ {[%emt 0:00:57]} 45. Kf4 {[%emt 0:00:11] aiming for h5.} Ng6+ {[%emt 0:00:19]} (45... b5 {was worth a try.} 46. g5 Ba3) 46. Kg5 {[%emt 0:00:34] h5 is the strong threat.} Ne5 {[%emt 0:00:25]} 47. Kf4 {[%emt 0:00:16]} (47. h5 $142) 47... Ng6+ {[%emt 0:00:03] [#]} 48. Kg3 $1 {[%emt 0:00:10]} Ne7 {[%emt 0:00:46]} 49. g5 {[%emt 0:03:24]} Nxd5 $2 {[%emt 0:01:29]} (49... Rd8 50. Kg4 Re8) 50. exd5 {[%emt 0:00:26][%mdl 4096] Endgame KRB-KRN} Kg8 {[%emt 0:00:39]} 51. Kf4 {[%emt 0:01:25]} b5 {[%emt 0:01:31]} 52. d6 {[%emt 0:02:10]} a4 {[%emt 0:00:17]} 53. bxa4 {[%emt 0:02:41]} bxa4 {[%emt 0:00:05]} 54. Rd5 {[%emt 0:00:25] Nh6+ would kill now.} Bb6 {[%emt 0:00:16]} 55. Rb5 {[%emt 0:06:33]} Rb8 {[%emt 0:00:02]} 56. Ke4 {[%emt 0:00:48] Intending d7 and mate.} a3 {[%emt 0:00:06]} 57. d7 {[%emt 0:00:37] White mates.} Rd8 {[%emt 0:04:36]} 58. Rxb6 {[%emt 0:00:15]} Rxd7 {[%emt 0:00:03] KRN-KR} 59. Ra6 {[%emt 0:00:15]} Kf7 {[%emt 0:00:01]} 60. Rxa3 {[%emt 0:00:34]} Kg6 {[%emt 0:00:02]} 61. Ng3 {[%emt 0:00:24]} Rd6 {[%emt 0:00:10]} 62. Kf4 {[%emt 0:01:08]} Rd4+ {[%emt 0:00:02]} 63. Ne4 {[%emt 0:00:16]} Kh5 {[%emt 0:00:05]} 64. Ra6 {[%emt 0:00:18] Weighted Error Value: White=0.21 (precise) /Black=0.29 (precise)} 1-0

[Event "New York Spring IM-C 2022"]
[Site "New York"]
[Date "2022.04.17"]
[Round "5.5"]
[White "Umayan, Vincent"]
[Black "Ngo, Bach"]
[Result "0-1"]
[ECO "D24"]
[WhiteElo "2043"]
[BlackElo "2306"]
[Annotator "TA"]
[PlyCount "60"]
[EventDate "2022.04.14"]
[EventType "tourn"]
[EventCountry "USA"]
[SourceTitle "playchess.com"]
[Source "ChessBase"]
[SourceQuality "1"]
[TimeControl "5400+30"]

{[%evp 10,60,21,0,0,0,0,12,14,10,18,28,29,0,4,0,2,-8,0,-16,0,-5,-21,-35,-17,-34,-39,-122,-47,-55,-45,-89,-85,-120,-132,-138,-143,-156,-139,-140,-125,-153,-117,-209,-202,-267,-266,-304,-303,-358,-294,-758,-709]} 1. d4 {[%emt 0:00:30]} Nf6 {[%emt 0:02:02]} 2. Nf3 {[%emt 0:00:48]} e6 {[%emt 0:00:16]} 3. c4 {[%emt 0:00:41]} d5 {[%emt 0:00:31]} 4. Nc3 {[%emt 0:04:51]} dxc4 {[%emt 0:00:18]} 5. e3 {[%emt 0:02:06]} a6 {[%emt 0:00:57]} 6. a4 {[%emt 0:06:27]} b6 {[%emt 0:00:26] D24: Queen's Gambit Accepted: 3 Nf3 Nf6 4 Nc3.} 7. Bxc4 {[%emt 0:00:15]} Bb7 {[%emt 0:00:11] Inhibits e4.} 8. O-O {[%emt 0:00:40][%cal Oe3e4]} Bb4 {[%emt 0:00:20] The position is equal.} 9. Qe2 {[%emt 0:05:36]} O-O {[%emt 0:00:25]} 10. Rd1 {[%emt 0:01:28]} Nbd7 {[%emt 0:09:41]} 11. Bd2 {[%emt 0:24:37]} Qe7 {[%emt 0:02:14]} 12. Rac1 {[%emt 0:01:09]} Rfd8 {[%emt 0:01:20]} 13. Be1 {[%emt 0:03:21]} h6 {[%emt 0:16:27] [#]} 14. Bb3 $146 {[%emt 0:11:07]} ({Predecessor:} 14. h3 c5 15. d5 Bxc3 16. d6 Qf8 17. Bxc3 Ne4 18. Qd3 Nxc3 19. Qxc3 Nf6 20. Qe5 {0-1 (28) Abramovic,B (2404)-Saric,A (2594) Skopje 2016}) 14... c5 {[%emt 0:16:56]} 15. Bc2 {[%emt 0:14:52]} cxd4 {[%emt 0:03:33]} 16. exd4 {[%emt 0:02:45]} Nd5 {[%emt 0:02:17]} 17. Qd3 {[%emt 0:03:29] [#] Intending Qh7+ and mate.} N7f6 {[%emt 0:01:53] Against Qh7+. Active counter play!} 18. Bb3 {[%emt 0:05:46]} (18. Nxd5 $15 Rxd5 19. Bb3) 18... Bd6 {[%emt 0:04:57]} (18... Nf4 $17 19. Qe3 Bd6) 19. Nxd5 $15 {[%emt 0:03:10]} Nxd5 {[%emt 0:00:17]} 20. Bxd5 {[%emt 0:03:45]} Bxd5 {[%emt 0:00:21]} 21. Qe3 {[%emt 0:00:56]} Qb7 {[%emt 0:01:11]} 22. Bc3 {[%emt 0:01:12]} b5 {[%emt 0:06:34]} 23. axb5 {[%emt 0:00:48]} axb5 {[%emt 0:00:11][%cal Ba6b5,Bb5b4][%mdl 32] aiming for ...Ra2.} 24. Ra1 {[%emt 0:00:45]} b4 {[%emt 0:00:14]} 25. Bd2 {[%emt 0:00:17]} Rdc8 {[%emt 0:00:48] [#] ...Rxa1 is the strong threat.} 26. Rxa8 {[%emt 0:00:34]} (26. Ne1 $17) 26... Rxa8 $19 {[%emt 0:00:29]} ({Not} 26... Qxa8 27. Ne1) 27. Ne1 {[%emt 0:01:09]} Ra2 {[%emt 0:00:25]} 28. Bc1 {[%emt 0:00:49]} Qc6 {[%emt 0:01:20]} 29. f3 {[%emt 0:00:21]} Qa4 {[%emt 0:01:30]} 30. Qd2 {[%emt 0:00:14]} (30. Rd2) 30... Bb3 {[%emt 0:00:21] Weighted Error Value: White=0.34/Black=0.12 (very precise)} 0-1